fUST/lending_fUST_20250302
["ID","MTS","AMOUNT","RATE_DAILY","PERIOD"]
[354990047,1740857468390,-500.0,0.00026,10]
[354990048,1740857468399,-500.0,0.00026,10]
[354990049,1740857468409,-500.0,0.00026,10]
[354990050,1740857468419,-500.0,0.00026,10]
[354990051,1740857468429,-500.0,0.00026,10]
[354990052,1740857468439,-500.0,0.00026,10]
[354990053,1740857468449,-875.6241254,0.00026,10]
[354990054,1740857468461,-500.0,0.00026,10]
[354990055,1740857468470,-821.99006047,0.00026,10]
[354990056,1740857468480,-2000.0,0.00026,10]
[354990057,1740857468490,-2000.0,0.00026,10]
[354990058,1740857468500,-2000.0,0.00026,10]
[354990059,1740857468509,-2000.0,0.00026,10]
[354990060,1740857468519,-2000.0,0.00026,10]
[354990061,1740857468529,-2000.0,0.00026,10]
[354990062,1740857468539,-2000.0,0.00026,10]
[354990063,1740857468549,-2000.0,0.00026,10]
[354990064,1740857468559,-2000.0,0.00026,10]
[354990065,1740857468569,-2000.0,0.00026,10]
[354990066,1740857468579,-2000.0,0.00026,10]
[354990067,1740857468589,-2000.0,0.00026,10]
[354990068,1740857468599,-2000.0,0.00026,10]
[354990069,1740857468609,-2579.37068278,0.00026,10]
[354990070,1740857468620,-160.0,0.00026,10]
[354990071,1740857468630,-856.57357249,0.00026,10]
[354990072,1740857468639,-19624.61182001,0.0002601,10]
[354990073,1740857468650,-201.451934,0.00026011,2]
[354990074,1740857468659,-354.16,0.00026018,3]
[354990075,1740857468669,-10609.55,0.00026027,2]
[354990076,1740857468679,-3142.39,0.00026027,2]
[354990077,1740857468688,-1001.39,0.00026027,5]
[354990078,1740857468701,-1380.89,0.00026027,2]
[354990079,1740857468713,-896.57,0.00026027,2]
[354990080,1740857468722,-943.8,0.00026027,2]
[354990081,1740857468732,-1343.24,0.00026027,2]
[354990082,1740857468742,-1956.41,0.00026027,2]
[354990083,1740857468752,-151.0,0.00026095,7]
[354990084,1740857468762,-1416.62,0.00026133,3]
[354990085,1740857468772,-708.3,0.00026133,3]
[354990086,1740857468781,-552.13943683,0.00026137,2]
[354990087,1740857468791,-1166.62,0.00026149,3]
[354990088,1740857468801,-500.0,0.00026163,2]
[354990089,1740857468810,-858.69,0.00026164,2]
[354990090,1740857468822,-596.96,0.00026164,2]
[354990091,1740857468837,-1269.89,0.00026164,2]
[354990092,1740857468847,-500.0,0.00026164,2]
[354990093,1740857468857,-500.0,0.00026164,2]
[354990094,1740857468866,-9549.99,0.00026164,2]
[354990095,1740857468877,-6794.48,0.00026164,2]
[354990096,1740857468886,-7164.65,0.00026164,2]
[354990097,1740857468896,-4507.15,0.00026164,2]
[354990098,1740857468907,-3115.05,0.00026164,2]
[354990099,1740857468917,-1841.89,0.00026164,2]
[354990100,1740857468926,-500.0,0.00026164,2]
[354990101,1740857468935,-500.0,0.00026164,2]
[354990102,1740857468945,-1364.94,0.00026164,2]
[354990103,1740857468959,-500.0,0.00026164,2]
[354990104,1740857468969,-1189.95,0.00026164,2]
[354990105,1740857468979,-5483.32,0.00026164,2]
[354990106,1740857468988,-9824.25,0.00026164,2]
[354990107,1740857468998,-547.19,0.00026164,2]
[354990108,1740857469008,-1885.04,0.00026164,2]
[354990109,1740857469017,-3161.78,0.00026164,2]
[354990110,1740857469027,-500.0,0.00026164,2]
[354990111,1740857469037,-817.1,0.00026164,2]
[354990112,1740857469046,-500.0,0.00026164,2]
[354990113,1740857469055,-3513.97,0.00026164,2]
[354990114,1740857469065,-608.14,0.00026164,2]
[354990115,1740857469075,-160.0,0.00026166,2]
[354990116,1740857469085,-500.0,0.00026167,2]
[354990117,1740857469094,-858.44,0.00026167,2]
[354990118,1740857469104,-500.0,0.00026167,2]
[354990119,1740857469114,-500.0,0.00026167,2]
[354990120,1740857469124,-713.06,0.00026167,2]
[354990121,1740857469134,-500.0,0.00026167,2]
[354990122,1740857469144,-500.0,0.00026167,2]
[354990123,1740857469154,-500.0,0.00026167,2]
[354990124,1740857469164,-659.94,0.00026167,2]
[354990125,1740857469174,-500.0,0.00026167,2]
[354990126,1740857469184,-500.0,0.00026167,2]
[354990127,1740857469194,-500.0,0.00026167,2]
[354990128,1740857469206,-707.17,0.00026167,2]
[354990129,1740857469216,-500.0,0.00026167,2]
[354990130,1740857469226,-500.0,0.00026167,2]
[354990131,1740857469237,-500.0,0.00026167,2]
[354990132,1740857469246,-500.0,0.00026167,2]
[354990133,1740857469256,-500.0,0.00026167,2]
[354990134,1740857469266,-564.24,0.00026167,2]
[354990135,1740857469276,-966.87,0.00026167,2]
[354990136,1740857469286,-500.0,0.00026167,2]
[354990137,1740857469296,-500.0,0.00026167,2]
[354990138,1740857469306,-694.01,0.00026167,2]
[354990139,1740857469316,-500.0,0.00026167,2]
[354990140,1740857469325,-500.0,0.00026167,2]
[354990141,1740857469335,-500.0,0.00026167,2]
[354990142,1740857469345,-571.62,0.00026167,2]
[354990143,1740857469354,-500.0,0.00026167,2]
[354990144,1740857469364,-500.0,0.00026167,2]
[354990145,1740857469374,-1223.73,0.00026167,2]
[354990146,1740857469384,-500.0,0.00026167,2]
[354990147,1740857469394,-500.0,0.00026167,2]
[354990148,1740857469403,-500.0,0.00026167,2]
[354990149,1740857469413,-500.0,0.00026167,2]
[354990150,1740857469423,-500.0,0.00026167,2]
[354990151,1740857469433,-825.25,0.00026167,2]
[354990152,1740857469443,-535.95,0.00026167,2]
[354990153,1740857469453,-507.6,0.00026167,2]
[354990154,1740857469463,-721.54,0.00026167,2]
[354990155,1740857469474,-500.0,0.00026167,2]
[354990156,1740857469483,-500.0,0.00026167,2]
[354990157,1740857469493,-552.31012193,0.00026167,2]
[354990158,1740857469503,-500.0,0.00026167,2]
[354990159,1740857469513,-500.0,0.00026167,2]
[354990160,1740857469523,-1722.41,0.00026167,2]
[354990161,1740857469534,-500.0,0.00026167,2]
[354990162,1740857469543,-1553.32,0.00026167,2]
[354990163,1740857469553,-500.0,0.00026167,2]
[354990164,1740857469563,-500.0,0.00026167,2]
[354990165,1740857469573,-655.92,0.00026167,2]
[354990166,1740857469583,-963.38,0.00026167,2]
[354990167,1740857469593,-1698.14,0.00026167,2]
[354990168,1740857469603,-500.0,0.00026167,2]
[354990169,1740857469614,-1092.58,0.00026167,2]
[354990170,1740857469623,-500.0,0.00026167,2]
[354990171,1740857469634,-500.0,0.00026167,2]
[354990172,1740857469643,-602.51,0.00026167,2]
[354990173,1740857469653,-500.0,0.00026167,2]
[354990174,1740857469663,-1131.4,0.00026167,2]
[354990175,1740857469673,-616.8,0.00026167,2]
[354990176,1740857469684,-500.0,0.00026167,2]
[354990177,1740857469694,-500.0,0.00026167,2]
[354990178,1740857469706,-1120.81,0.00026167,2]
[354990179,1740857469716,-500.0,0.00026167,2]
[354990180,1740857469726,-500.0,0.00026167,2]
[354990181,1740857469736,-500.0,0.00026167,2]
[354990182,1740857469746,-1027.5,0.00026167,2]
[354990183,1740857469756,-500.72,0.00026167,2]
[354990184,1740857469766,-500.0,0.00026167,2]
[354990185,1740857469776,-1804.23,0.00026167,2]
[354990186,1740857469787,-500.0,0.00026167,2]
[354990187,1740857469797,-500.0,0.00026167,2]
[354990188,1740857470018,-604.37,0.00026167,2]
[354990189,1740857470028,-242.72869644,0.00026167,2]
[354990190,1740857470038,-644.13,0.00026167,2]
[354990191,1740857470047,-1201.06,0.00026167,2]
[354990192,1740857470057,-500.0,0.00026167,2]
[354990193,1740857470067,-678.46,0.00026167,2]
[354990194,1740857470077,-1104.24,0.00026167,2]
[354990195,1740857470087,-875.88,0.00026167,2]
[354990196,1740857470096,-500.0,0.00026167,2]
[354990197,1740857470106,-500.44,0.00026167,2]
[354990198,1740857470116,-811.53,0.00026167,2]
[354990199,1740857470125,-1189.34,0.00026167,2]
[354990200,1740857470135,-909.26,0.00026167,2]
[354990201,1740857470144,-1101.03,0.00026167,2]
[354990202,1740857470154,-1065.65,0.00026167,2]
[354990203,1740857470163,-733.72,0.00026167,2]
[354990204,1740857470173,-500.0,0.00026167,2]
[354990205,1740857470183,-500.4,0.00026167,2]
[354990206,1740857470192,-500.0,0.00026167,2]
[354990207,1740857470202,-592.68,0.00026167,2]
[354990208,1740857470211,-1067.56,0.00026167,2]
[354990209,1740857470221,-1975.06,0.00026167,2]
[354990210,1740857470230,-2073.86,0.00026167,2]
[354990211,1740857470239,-500.0,0.00026167,2]
[354990212,1740857470249,-1489.16,0.00026167,2]
[354990213,1740857470258,-500.0,0.00026167,2]
[354990214,1740857470268,-1929.49,0.00026167,2]
[354990215,1740857470278,-500.0,0.00026167,2]
[354990216,1740857470287,-500.0,0.00026167,2]
[354990217,1740857470297,-1144.466838,0.00026167,7]
[354990218,1740857470307,-1843.61,0.00026167,2]
[354990219,1740857470316,-1144.466838,0.00026167,7]
[354990220,1740857470326,-500.0,0.00026167,2]
[354990221,1740857470336,-1470.76,0.00026167,2]
[354990222,1740857470346,-720.84,0.00026167,2]
[354990223,1740857470355,-4165.14,0.00026167,2]
[354990224,1740857470365,-500.0,0.00026167,2]
[354990225,1740857470375,-1402.04,0.00026167,2]
[354990226,1740857470385,-1069.8,0.00026167,2]
[354990227,1740857470395,-500.0,0.00026167,2]
[354990228,1740857470404,-500.0,0.00026167,2]
[354990229,1740857470414,-1832.6,0.00026167,2]
[354990230,1740857470425,-1174.23,0.00026167,2]
[354990231,1740857470434,-500.0,0.00026167,2]
[354990232,1740857470444,-955.78,0.00026167,2]
[354990233,1740857470454,-452.844127,0.00026167,7]
[354990234,1740857470463,-500.0,0.00026167,2]
[354990235,1740857470473,-452.844127,0.00026167,7]
[354990236,1740857470482,-603.76,0.00026167,2]
[354990237,1740857470492,-500.0,0.00026167,2]
[354990238,1740857470502,-508.02,0.00026167,2]
[354990239,1740857470511,-501.91,0.00026167,2]
[354990240,1740857470521,-500.0,0.00026167,2]
[354990241,1740857470531,-596.44,0.00026167,2]
[354990242,1740857470540,-500.0,0.00026167,2]
[354990243,1740857470550,-699.09,0.00026167,2]
[354990244,1740857470559,-500.0,0.00026167,2]
[354990245,1740857470568,-500.0,0.00026167,2]
[354990246,1740857470579,-2144.99504,0.00026167,5]
[354990247,1740857470589,-961.56,0.00026167,2]
[354990248,1740857470599,-1285.04,0.00026167,2]
[354990249,1740857470609,-2144.99504,0.00026167,5]
[354990250,1740857470618,-2258.54,0.00026167,2]
[354990251,1740857470628,-233.889723,0.00026167,7]
[354990252,1740857470637,-1223.59,0.00026167,2]
[354990253,1740857470647,-847.08,0.00026167,2]
[354990254,1740857470657,-500.0,0.00026167,2]
[354990255,1740857470667,-1293.13,0.00026167,2]
[354990256,1740857470676,-308.458914,0.00026167,7]
[354990257,1740857470687,-1067.33,0.00026167,2]
[354990258,1740857470697,-1474.81,0.00026167,2]
[354990259,1740857470708,-308.458914,0.00026167,7]
[354990260,1740857470718,-500.0,0.00026167,2]
[354990261,1740857470729,-30608.01,0.00026167,2]
[354990262,1740857470738,-609.75,0.00026167,2]
[354990263,1740857470748,-251.433184,0.00026167,7]
[354990264,1740857470758,-500.0,0.00026167,2]
[354990265,1740857470767,-1382.44,0.00026167,2]
[354990266,1740857470777,-500.0,0.00026167,2]
[354990267,1740857470787,-500.0,0.00026167,2]
[354990268,1740857470797,-500.0,0.00026167,2]
[354990269,1740857470806,-251.433184,0.00026167,7]
[354990270,1740857470816,-741.75,0.00026167,2]
[354990271,1740857470826,-735.61,0.00026167,2]
[354990272,1740857470838,-519.61,0.00026167,2]
[354990273,1740857470848,-2261.61,0.00026167,2]
[354990274,1740857470857,-575.39,0.00026167,2]
[354990275,1740857470867,-1128.9,0.00026167,2]
[354990276,1740857470878,-500.0,0.00026167,2]
[354990277,1740857470888,-500.0,0.00026167,2]
[354990278,1740857470897,-917.52,0.00026167,2]
[354990279,1740857470910,-1794.6,0.00026167,2]
[354990280,1740857470920,-2224.926881,0.00026167,7]
[354990281,1740857470931,-2224.926881,0.00026167,7]
[354990282,1740857470940,-761.6,0.00026167,2]
[354990283,1740857470951,-500.0,0.00026167,2]
[354990284,1740857470960,-831.09,0.00026167,2]
[354990285,1740857470970,-500.0,0.00026167,2]
[354990286,1740857470980,-868.19,0.00026167,2]
[354990287,1740857470989,-5553.82,0.00026167,2]
[354990288,1740857470999,-500.0,0.00026167,2]
[354990289,1740857471009,-814.970967,0.00026167,7]
[354990290,1740857471018,-500.0,0.00026167,2]
[354990291,1740857471028,-814.970967,0.00026167,7]
[354990292,1740857471037,-500.0,0.00026167,2]
[354990293,1740857471047,-151.796906,0.00026167,7]
[354990294,1740857471056,-151.796906,0.00026167,7]
[354990295,1740857471066,-1238.29,0.00026167,2]
[354990296,1740857471076,-652.4,0.00026167,2]
[354990297,1740857471086,-500.0,0.00026167,2]
[354990298,1740857471095,-8724.27,0.00026167,2]
[354990299,1740857471105,-1806.35,0.00026167,2]
[354990300,1740857471114,-835.77,0.00026167,2]
[354990301,1740857471124,-500.0,0.00026167,2]
[354990302,1740857471134,-500.0,0.00026167,2]
[354990303,1740857471144,-500.0,0.00026167,2]
[354990304,1740857471154,-513.01,0.00026167,2]
[354990305,1740857471164,-732.38,0.00026167,2]
[354990306,1740857471173,-2278.27,0.00026167,2]
[354990307,1740857471183,-173131.02,0.00026167,2]
[354990308,1740857471193,-500.0,0.00026167,2]
[354990309,1740857471204,-552.67,0.00026167,2]
[354990310,1740857471214,-500.0,0.00026167,2]
[354990311,1740857471224,-1348.7,0.00026167,2]
[354990312,1740857471233,-3211.95,0.00026167,2]
[354990313,1740857471243,-441.528829,0.00026167,7]
[354990314,1740857471253,-500.0,0.00026173,2]
[354990315,1740857471262,-552.13943683,0.00026247,2]
[354990316,1740857471272,-256.866119,0.00026268,7]
[354990317,1740857471283,-154.958106,0.00026268,7]
[354990318,1740857471293,-529.856333,0.00026268,7]
[354990319,1740857471303,-529.856333,0.00026268,7]
[354990320,1740857471312,-413.819042,0.00026268,7]
[354990321,1740857471323,-413.819042,0.00026268,7]
[354990322,1740857471332,-159.015658,0.00026268,7]
[354990323,1740857471341,-159.015658,0.00026268,7]
[354990324,1740857471350,-151.0,0.00026268,7]
[354990325,1740857471360,-151.0,0.00026268,7]
[354990326,1740857471370,-184.46586,0.00026268,7]
[354990327,1740857471379,-184.46586,0.00026268,7]
[354990328,1740857471388,-652.41,0.00026268,2]
[354990329,1740857471397,-151.0,0.00026268,7]
[354990330,1740857471407,-253.374934,0.00026268,7]
[354990331,1740857471416,-228.566124,0.00026268,7]
[354990332,1740857471426,-253.374934,0.00026268,7]
[354990333,1740857471436,-151.0,0.00026268,7]
[354990334,1740857471446,-520.12528,0.00026268,7]
[354990335,1740857471457,-520.12528,0.00026268,7]
[354990336,1740857471467,-189.764472,0.00026268,7]
[354990337,1740857471476,-189.764472,0.00026268,7]
[354990338,1740857471486,-500.0,0.00026268,2]
[354990339,1740857471496,-500.0,0.00026268,2]
[354990340,1740857471505,-151.0,0.00026268,7]
[354990341,1740857471516,-500.0,0.00026268,2]
[354990342,1740857471525,-938.62,0.00026268,2]
[354990343,1740857471535,-151.0,0.00026268,7]
[354990344,1740857471544,-267.568537,0.00026268,7]
[354990345,1740857471554,-267.568537,0.00026268,7]
[354990346,1740857471564,-1486.0,0.00026268,2]
[354990347,1740857471574,-1323.27,0.00026268,2]
[354990348,1740857471583,-898.0,0.00026268,2]
[354990349,1740857471594,-631.85,0.00026268,2]
[354990350,1740857471604,-500.0,0.00026268,2]
[354990351,1740857471614,-307.0,0.00026268,2]
[354990352,1740857471624,-500.0,0.00026268,2]
[354990353,1740857471634,-500.0,0.00026268,2]
[354990354,1740857471644,-507.43,0.00026268,2]
[354990355,1740857471653,-117.27435386,0.00026268,7]
[354990356,1740857471957,-4242.67,0.00025479,2]
[354990357,1740857471967,-118.44064314,0.00026268,7]
[354990358,1740857471977,-500.0,0.00026268,2]
[354990359,1740857471987,-313.318478,0.00026268,7]
[354990360,1740857471996,-235.714997,0.00026268,7]
[354990361,1740857472006,-2335.86,0.00026268,2]
[354990362,1740857472016,-313.318478,0.00026268,7]
[354990363,1740857472026,-151.0,0.00026268,7]
[354990364,1740857472037,-500.0,0.00026268,2]
[354990365,1740857472046,-151.0,0.00026268,7]
[354990366,1740857472055,-1590.82,0.00026268,2]
[354990367,1740857472065,-1820.71,0.00026268,2]
[354990368,1740857472075,-151.0,0.00026268,7]
[354990369,1740857472084,-500.0,0.00026268,2]
[354990370,1740857472094,-2003.120147,0.00026268,7]
[354990371,1740857472104,-2003.120147,0.00026268,7]
[354990372,1740857472114,-500.0,0.00026268,2]
[354990373,1740857472123,-907.8,0.00026268,2]
[354990374,1740857472133,-2347.56,0.00026268,2]
[354990375,1740857472142,-676.9,0.00026268,2]
[354990376,1740857472159,-500.0,0.00026268,2]
[354990377,1740857472168,-779.62,0.00026268,2]
[354990378,1740857472177,-308.956984,0.00026268,7]
[354990379,1740857472187,-842.37,0.00026268,2]
[354990380,1740857472197,-308.956984,0.00026268,7]
[354990381,1740857472207,-783.61,0.00026268,2]
[354990382,1740857472216,-500.0,0.00026268,2]
[354990383,1740857472226,-500.0,0.00026268,2]
[354990384,1740857472312,-471.236126,0.00026268,7]
[354990385,1740857472323,-471.236126,0.00026268,7]
[354990386,1740857472332,-522.64,0.00026268,2]
[354990387,1740857472342,-1261.231628,0.00026268,7]
[354990388,1740857472351,-1261.231628,0.00026268,7]
[354990389,1740857472360,-1335.89,0.00026268,2]
[354990390,1740857472370,-1712.0,0.00026268,2]
[354990391,1740857472380,-500.0,0.00026268,2]
[354990392,1740857472391,-500.0,0.00026268,2]
[354990393,1740857472400,-548.51,0.00026268,2]
[354990394,1740857472409,-4407.18,0.00026268,2]
[354990395,1740857472420,-500.0,0.00026268,2]
[354990396,1740857472429,-265.309398,0.00026268,7]
[354990397,1740857472439,-265.309398,0.00026268,7]
[354990398,1740857472448,-349.74897668,0.00026268,2]
[354990399,1740857472457,-500.0,0.00026268,2]
[354990400,1740857472466,-500.0,0.00026268,2]
[354990401,1740857472475,-1187.59,0.00026268,2]
[354990402,1740857472484,-1428.98,0.00026268,2]
[354990403,1740857472493,-542.1,0.00026268,2]
[354990404,1740857472503,-151.0,0.00026269,7]
[354990405,1740857472512,-588.39,0.00026269,2]
[354990406,1740857472521,-522.53,0.00026269,2]
[354990407,1740857472530,-863.79,0.00026269,2]
[354990408,1740857472540,-624.04,0.00026269,2]
[354990409,1740857472550,-500.0,0.00026269,2]
[354990410,1740857472560,-948.0,0.00026269,2]
[354990411,1740857472569,-500.0,0.00026269,2]
[354990412,1740857472579,-500.0,0.00026269,2]
[354990413,1740857472588,-929.38,0.00026269,2]
[354990414,1740857472597,-1153.77,0.00026269,2]
[354990415,1740857472607,-500.0,0.00026269,2]
[354990416,1740857472617,-521.67,0.00026269,2]
[354990417,1740857472626,-585.82,0.00026269,2]
[354990418,1740857472635,-500.0,0.00026269,2]
[354990419,1740857472644,-1180.43,0.00026269,2]
[354990420,1740857472654,-500.0,0.00026269,2]
[354990421,1740857472663,-2450.62,0.00026269,2]
[354990422,1740857472672,-1331.29,0.00026269,2]
[354990423,1740857472681,-308.458914,0.00026269,7]
[354990424,1740857472691,-308.458914,0.00026269,7]
[354990425,1740857472700,-251.433184,0.00026269,7]
[354990426,1740857472711,-251.433184,0.00026269,7]
[354990427,1740857472721,-2224.926881,0.00026269,7]
[354990428,1740857472730,-2224.926881,0.00026269,7]
[354990429,1740857472739,-151.796906,0.00026269,7]
[354990430,1740857472748,-151.796906,0.00026269,7]
[354990431,1740857472758,-441.528829,0.00026269,7]
[354990432,1740857472767,-25000.0,0.00026271,3]
[354990433,1740857472776,-160.0,0.00026271,3]
[354990434,1740857472785,-184.46586,0.00026271,7]
[354990435,1740857472795,-184.46586,0.00026271,7]
[354990436,1740857472804,-151.0,0.00026271,7]
[354990437,1740857472813,-253.374934,0.00026271,7]
[354990438,1740857472828,-253.374934,0.00026271,7]
[354990439,1740857472837,-151.0,0.00026271,7]
[354990440,1740857472846,-520.12528,0.00026271,7]
[354990441,1740857472855,-520.12528,0.00026271,7]
[354990442,1740857472866,-151.0,0.00026271,7]
[354990443,1740857472876,-151.0,0.00026271,7]
[354990444,1740857472885,-267.568537,0.00026271,7]
[354990445,1740857472895,-267.568537,0.00026271,7]
[354990446,1740857472906,-235.714997,0.00026271,7]
[354990447,1740857472915,-313.318478,0.00026271,7]
[354990448,1740857472925,-235.714997,0.00026271,7]
[354990449,1740857472934,-313.318478,0.00026271,7]
[354990450,1740857472943,-151.0,0.00026271,7]
[354990451,1740857472952,-151.0,0.00026271,7]
[354990452,1740857472962,-151.0,0.00026271,7]
[354990453,1740857472972,-1261.231628,0.00026271,7]
[354990454,1740857472982,-1261.231628,0.00026271,7]
[354990455,1740857472991,-1144.466838,0.00026271,7]
[354990456,1740857473000,-1144.466838,0.00026271,7]
[354990457,1740857473010,-452.844127,0.00026271,7]
[354990458,1740857473019,-452.844127,0.00026271,7]
[354990459,1740857473028,-265.309398,0.00026271,7]
[354990460,1740857473037,-265.309398,0.00026271,7]
[354990461,1740857473047,-2144.99504,0.00026271,5]
[354990462,1740857473057,-2144.99504,0.00026271,5]
[354990463,1740857473067,-2003.120147,0.0002628,7]
[354990464,1740857473076,-2003.120147,0.0002628,7]
[354990465,1740857473085,-471.236126,0.0002628,7]
[354990466,1740857473094,-471.236126,0.0002628,7]
[354990467,1740857473103,-19624.61182001,0.0002628,3]
[354990468,1740857473113,-539.39,0.000263,7]
[354990469,1740857473122,-10609.55,0.00026301,2]
[354990470,1740857473131,-3142.39,0.00026301,2]
[354990471,1740857473140,-1001.39,0.00026301,5]
[354990472,1740857473150,-1380.89,0.00026301,2]
[354990473,1740857473159,-896.57,0.00026301,2]
[354990474,1740857473167,-943.8,0.00026301,2]
[354990475,1740857473176,-1343.24,0.00026301,2]
[354990476,1740857473186,-1956.41,0.00026301,2]
[354990477,1740857473195,-4816.06646754,0.0002631,30]
[354990478,1740857473204,-160.0,0.0002631,30]
[354990479,1740857473214,-151.0,0.00026369,7]
[354990480,1740857473223,-151.0,0.00026369,7]
[354990481,1740857473232,-189.764472,0.00026369,7]
[354990482,1740857473241,-189.764472,0.00026369,7]
[354990483,1740857473251,-308.956984,0.00026369,7]
[354990484,1740857473260,-308.956984,0.00026369,7]
[354990485,1740857473269,-500.0,0.00026382,9]
[354990486,1740857473279,-500.0,0.00026382,9]
[354990487,1740857473293,-500.0,0.00026382,9]
[354990488,1740857473302,-500.0,0.00026382,9]
[354990489,1740857473311,-500.0,0.00026382,9]
[354990490,1740857473320,-569.0379975,0.00026382,9]
[354990491,1740857473330,-552.13943683,0.00026384,2]
[354990492,1740857473339,-19624.61182001,0.000264,30]
[354990493,1740857473348,-463.0,0.00026405,3]
[354990494,1740857473357,-350.0,0.00026405,3]
[354990495,1740857473367,-350.0,0.00026405,3]
[354990496,1740857473377,-350.0,0.00026405,3]
[354990497,1740857473386,-350.0,0.00026405,3]
[354990498,1740857473396,-800.0,0.00026431,2]
[354990499,1740857473406,-500.0,0.00026437,2]
[354990500,1740857473419,-858.69,0.00026438,2]
[354990501,1740857473429,-596.96,0.00026438,2]
[354990502,1740857473438,-1269.89,0.00026438,2]
[354990503,1740857473449,-500.0,0.00026438,2]
[354990504,1740857473459,-500.0,0.00026438,2]
[354990505,1740857473469,-6794.48,0.00026438,2]
[354990506,1740857473479,-7164.65,0.00026438,2]
[354990507,1740857473489,-4507.15,0.00026438,2]
[354990508,1740857473499,-3115.05,0.00026438,2]
[354990509,1740857473508,-1841.89,0.00026438,2]
[354990510,1740857473518,-500.0,0.00026438,2]
[354990511,1740857473527,-500.0,0.00026438,2]
[354990512,1740857473537,-1364.94,0.00026438,2]
[354990513,1740857473546,-500.0,0.00026438,2]
[354990514,1740857473556,-1189.95,0.00026438,2]
[354990515,1740857473566,-5483.32,0.00026438,2]
[354990516,1740857473575,-9824.25,0.00026438,2]
[354990517,1740857473585,-547.19,0.00026438,2]
[354990518,1740857473594,-1885.04,0.00026438,2]
[354990519,1740857473604,-3161.78,0.00026438,2]
[354990520,1740857473614,-500.0,0.00026438,2]
[354990521,1740857473624,-817.1,0.00026438,2]
[354990522,1740857473633,-500.0,0.00026438,2]
[354990523,1740857473643,-3513.97,0.00026438,2]
[354990524,1740857473652,-608.14,0.00026438,2]
[354990525,1740857473661,-500.0,0.00026441,2]
[354990526,1740857473671,-858.44,0.00026441,2]
[354990527,1740857473680,-615.52004246,0.00026441,2]
[354990528,1740857473690,-500.0,0.00026441,2]
[354990529,1740857473700,-713.06,0.00026441,2]
[354990530,1740857473712,-500.0,0.00026441,2]
[354990531,1740857473721,-500.0,0.00026441,2]
[354990532,1740857473730,-500.0,0.00026441,2]
[354990533,1740857473740,-659.94,0.00026441,2]
[354990534,1740857473750,-500.0,0.00026441,2]
[354990535,1740857473759,-500.0,0.00026441,2]
[354990536,1740857473769,-500.0,0.00026441,2]
[354990537,1740857473778,-707.17,0.00026441,2]
[354990538,1740857473787,-500.0,0.00026441,2]
[354990539,1740857473797,-500.0,0.00026441,2]
[354990540,1740857473806,-500.0,0.00026441,2]
[354990541,1740857473816,-500.0,0.00026441,2]
[354990542,1740857473826,-500.0,0.00026441,2]
[354990543,1740857473836,-564.24,0.00026441,2]
[354990544,1740857473846,-966.87,0.00026441,2]
[354990545,1740857473855,-500.0,0.00026441,2]
[354990546,1740857473864,-500.0,0.00026441,2]